Cogmind - Beta 16.1 @@@ ROGUE MODE // 2026.03.29 @ 09:50:55 Player: laeb2 Result: Destroyed by G-50 Soldier with Heavy Laser Performance ------------- Evolutions (5) 2500 Regions Visited (13) 2600 Robots Destroyed (178) 890 Value Destroyed (6542) 6542 Prototype IDs (13) 260 Alien Tech Used (0) 0 Bonus (3201) 3201 TOTAL SCORE: 15993 Bonus ------- High Alert Combat Kills 685 Follower Combat Kills 1983 Entered Garrisons 200 Network Hubs Disabled 200 Built Enhanced Grunts 300 A7 Reached Mainframe 300 Friendly Fire -467 Cogmind --------- Core Integrity 0/1000 Matter 12/450 Energy 170/170 System Corruption 15% Temperature Cool (9) Movement Walking (252) Ox2 Location -5/Hub_04(d) Parts ------- > --- POWER (1) -------- Light Antimatter Reactor > --- PROPULSION (5) --- Carbon-fiber Leg Armored Leg > --- UTILITY (8) ------ Advanced Cooling System High-capacity Storage Unit Large Matter Pod Advanced Signal Interpreter Improved Melee Analysis Suite Advanced Melee Analysis Suite Graphene Brace (fused) > --- WEAPON (3) ------- Hypervelocity Mass Driver Hypervelocity Mass Driver > --- INVENTORY (20) --- Flexi-carbon Leg Improved Sensor Array Improved Force Booster System Restoration Module KE Penetrator Hypervelocity Mass Driver Rocket Array Plasma Cutter Power Maul Peak State ------------ > --- POWER ------------ Neutrino Core > --- PROPULSION ------- Carbon-fiber Leg Flexi-carbon Leg Flexi-carbon Leg Flexi-carbon Leg Armored Leg > --- UTILITY ---------- High-capacity Storage Unit Enhanced Optical Array Advanced Signal Interpreter Advanced Melee Analysis Suite Improved Force Booster Improved Force Booster Improved Phase Shifter Graphene Brace > --- WEAPON ----------- Ripper Phasing Sabre Phasing Sabre > --- INVENTORY -------- Neutrino Core Neutrino Core Carbon-fiber Leg Carbon-fiber Leg Carbon-fiber Leg Flexi-carbon Leg Compact Wheel Advanced Cooling System Large Matter Pod Improved Sensor Array Improved Force Booster Improved Medium Armor Plating System Restoration Module Hypervelocity Mass Driver Hypervelocity Mass Driver Hypervelocity Mass Driver Hypervelocity Mass Driver Rocket Array Plasma Cutter Power Maul [Rating: 98] Favorites ----------- Power Neutrino Core Engine F-cell Engine Power Core Neutrino Core Reactor Cold Fusion Reactor Propulsion Carbon-fiber Leg Treads Light Treads Leg Carbon-fiber Leg Wheel Compact Wheel Utility Improved Force Booster Device Improved Force Booster Storage High-capacity Storage Unit Processor Advanced Signal Interpreter Protection Improved Medium Armor Plating Weapon Spear Energy Gun Heavy EM Pulse Gun Energy Cannon Advanced Beam Cannon Ballistic Gun Light Assault Rifle Ballistic Cannon Mini Assault Cannon Launcher Grenade Launcher Special Weapon Plasma Cutter Impact Weapon Flail Slashing Weapon Ripper Piercing Weapon Spear Build | -11 -10 -9 -8 -7 -7 -7 -6 -5 -5 -5 -5 -5 -5 ------- Run | Yrd Mat Mat Mat Fac Was Fac Fac Fac Gar Ext Cet Arc Hub Slots Evolved 10 | . . 2 2 2 . . 2 2 . . . . . Power . | . . . . . . . . . . . . . . Propulsion 3 | . . 1 1 1 . . . . . . . . . Utility 6 | . . 1 . 1 . . 2 2 . . . . . Weapon 1 | . . . 1 . . . . . . . . . . Parts Attached 148 | 7 8 25 10 7 1 12 13 5 13 28 3 2 14 Power 17 | 1 1 3 1 . . 2 3 . 1 3 . . 2 Engine 9 | 1 1 3 1 . . . 2 . 1 . . . . Core 6 | . . . . . . 2 . . . 3 . . 1 Reactor 2 | . . . . . . . 1 . . . . . 1 Propulsion 54 | 2 1 8 4 4 . 3 3 2 5 15 1 2 4 Treads 10 | 2 . 4 1 1 . . . . . 2 . . . Leg 34 | . . . 3 3 . 1 3 2 5 10 1 2 4 Wheel 10 | . 1 4 . . . 2 . . . 3 . . . Hover . | . . . . . . . . . . . . . . Flight . | . . . . . . . . . . . . . . Utility 40 | 2 3 4 1 1 . 5 6 2 3 6 2 . 5 Device 23 | 1 1 1 1 1 . 4 2 2 2 5 . . 3 Storage 5 | 1 2 . . . . . 1 . . . . . 1 Processor 6 | . . 1 . . . 1 3 . . 1 . . . Hackware . | . . . . . . . . . . . . . . Protection 6 | . . 2 . . . . . . 1 . 2 . 1 Artifact . | . . . . . . . . . . . . . . Weapon 37 | 2 3 10 4 2 1 2 1 1 4 4 . . 3 Energy Gun 7 | 1 1 4 1 . . . . . . . . . . Energy Cannon 5 | . . 2 . 2 . . . . . . . . 1 Ballistic Gun 4 | 1 1 . 1 . . . . . 1 . . . . Ballistic Cannon 5 | . . . . . . . 1 . 2 . . . 2 Launcher 4 | . 1 . . . 1 1 . 1 . . . . . Special Weapon 1 | . . . . . . . . . . 1 . . . Impact Weapon 3 | . . 2 . . . . . . 1 . . . . Slashing Weapon 7 | . . 2 2 . . . . . . 3 . . . Piercing Weapon 1 | . . . . . . 1 . . . . . . . Special Melee Weapon . | . . . . . . . . . . . . . . Unidentified Prototypes 13 | . . 3 1 . . 3 5 . 1 . . . . Parts Lost 76 | . 4 11 5 1 1 5 2 3 7 15 2 4 16 Power 9 | . 1 2 . . . . . . 1 3 . . 2 Propulsion 35 | . 1 6 2 . . 3 . 3 4 6 . 3 7 Utility 20 | . 1 2 . 1 1 1 1 . 1 5 2 . 5 Weapon 12 | . 1 1 3 . . 1 1 . 1 1 . 1 2 Highest Loss Streak 8 | . 2 6 5 1 1 3 1 2 3 5 2 4 8 To Critical Strikes . | . . . . . . . . . . . . . . Average Backups 15 | 1 8 14 12 14 14 14 17 18 19 18 19 19 16 Power 2 | . 1 1 1 2 2 2 4 5 3 2 1 1 . Propulsion 2 | . . . 1 1 1 . 3 4 3 2 5 5 2 Utility 4 | . 2 3 1 2 3 4 3 3 5 6 7 6 6 Weapon 6 | . 3 7 8 7 7 7 5 5 5 6 5 5 5 Tool/Special . | . . . . . . . . . . . . . . Unused Backups 33 | . 2 5 1 1 1 7 4 1 3 4 . . 4 Power 9 | . . 1 . . . 2 3 . . 3 . . . Propulsion 3 | . . . . 1 . . 1 . . 1 . . . Utility 8 | . 1 2 1 . . 1 . . 1 . . . 2 Weapon 13 | . 1 2 . . 1 4 . 1 2 . . . 2 Tool/Special . | . . . . . . . . . . . . . . Average Slot Usage (%) 92 | . 88 95 84 93 89 88 98 90 93 96 91 89 84 Engine 5 | . 13 10 9 7 7 . . 5 5 1 . . . Core 1 | . . . . . . 6 2 . . 3 5 5 3 Treads 6 | . 24 11 14 7 7 6 . . . 6 . . . Leg 18 | . . . 13 28 28 23 29 26 28 16 29 23 23 Wheel 3 | . 3 19 4 . . 2 3 1 . 3 . . . Device 14 | . 4 8 13 18 13 11 18 14 18 22 9 17 15 Storage 7 | . 14 11 9 7 7 7 6 5 5 5 5 5 6 Processor 10 | . . 7 . . . 4 14 17 17 16 17 17 17 Protection 1 | . . 4 . . . . . . 2 . 4 5 3 Energy Gun 2 | . 9 3 10 14 . 1 . . . . . . . Energy Cannon 2 | . . 2 . 7 10 13 7 . . . . . 3 Ballistic Gun 2 | . 17 . . . . . 2 5 . . . . . Ballistic Cannon 1 | . . . . . . . . 4 4 . . . 3 Impact Weapon 1 | . . 10 . . . . . . . . . 4 . Slashing Weapon 3 | . . 3 10 . . . . . . 9 11 5 2 Piercing Weapon 2 | . . . . . . 4 6 5 4 3 . . . Peak Build Rating 98 | 7 8 21 30 43 43 50 68 77 84 98 92 90 85 Average Rating 52 | 5 6 15 22 35 38 42 57 68 75 83 80 78 73 On Entrance 47 | . 7 8 14 30 43 32 41 67 77 84 91 90 78 Avg Prop Armor Cover (%) 11 | . 14 12 11 6 6 8 15 . . 18 . . . Naked Turns . | . . . . . . . . . . . . . . Heaviest Build 93 | 11 29 43 36 47 47 56 72 75 93 93 86 86 90 Greatest Support 91 | 40 40 40 60 70 70 65 85 85 80 91 91 91 85 Greatest Overweight (x) 7 | . 1 2 2 . . 4 2 7 1 5 . 1 2 Average Overweight (x) . | . . . . . . . . . . 1 . . . Largest Inventory Capacity 20 | 8 15 15 15 15 15 15 20 20 20 20 20 20 20 Average Capacity 17 | 7 10 15 15 15 15 15 18 20 20 20 20 20 20 Most Carried 20 | 5 15 15 15 15 15 15 20 20 20 20 20 20 20 Average Carried 15 | 1 9 14 12 14 15 14 17 18 19 18 19 19 16 Final Capacity 20 | 8 15 15 15 15 15 15 20 20 20 20 20 20 20 Final Carried 20 | 2 15 13 15 15 15 15 19 17 20 20 20 20 9 Class Distribution -------------------- 35% | Mutant 18% | Scavenger-Mutant 11% | Commander-Gladiator 10% | Scavenger-Gladiator 6% | Assassin 5% | Gladiator 3% | Gunner 3% | Tank Dominant Class ---------------- Mutant | -10/Materials Mutant | -9/Materials Mutant | -8/Materials Tank | -7/Factory Scientist-Gunner | -7/Waste Mutant | -7/Factory Assassin | -6/Factory Mutant | -5/Factory Scavenger-Mutant | -5/Garrison Scavenger-Gladiator | -5/Extension Commander-Gladiator | -5/Cetus Commander-Gladiator | -5/Archives Commander-Mutant | -5/Hub_04(d) Resources | -11 -10 -9 -8 -7 -7 -7 -6 -5 -5 -5 -5 -5 -5 ----------- Run | Yrd Mat Mat Mat Fac Was Fac Fac Fac Gar Ext Cet Arc Hub Matter Collected 4144 | 277 271 485 103 55 514 157 359 33 416 858 160 107 349 Remotely . | . . . . . . . . . . . . . . Salvage Created 8932 | 140 577 857 520 208 1273 227 1035 179 840 1910 10 167 989 Parts 321 | 10 22 39 18 8 2 21 53 5 38 64 . 1 40 Haulers Intercepted 11 | . 2 4 1 . . . 2 . . . . . 2 Recyclers Shooed 10 | 1 4 1 . . . 1 . . . 3 . . . Parts Field Recycled . | . . . . . . . . . . . . . . Retrieved Matter . | . . . . . . . . . . . . . . Parts Self-Destructed . | . . . . . . . . . . . . . . Prevented . | . . . . . . . . . . . . . . Parts Restored . | . . . . . . . . . . . . . . Kills | -11 -10 -9 -8 -7 -7 -7 -6 -5 -5 -5 -5 -5 -5 ------- Run | Yrd Mat Mat Mat Fac Was Fac Fac Fac Gar Ext Cet Arc Hub Combat Hostiles Destroyed 116 | . 8 17 7 2 6 9 9 5 21 17 1 1 13 Melee 43 | . . 7 3 . . 3 5 2 13 10 . . . Guns 11 | . 5 1 4 1 . . . . . . . . . Cannons 17 | . . . . . . . 1 . 1 6 . . 9 AOE 37 | . 3 5 . . 6 6 3 3 6 . 1 . 4 Classes Destroyed 20 | 2 3 5 2 1 1 . . 1 1 2 . 1 1 Worker 8 | . . 3 . . . 2 . . . 2 . . 1 Builder 5 | . . 1 . . . . 1 1 . 2 . . . Tunneler 5 | 2 . . . 1 . 1 . . . . . . 1 Hauler 11 | . 2 4 1 . . . 2 . . . . . 2 Recycler 17 | 1 3 2 . 1 . . 4 . . 6 . . . Mechanic 1 | . . 1 . . . . . . . . . . . Operator 5 | . . . . . . . . . . . . 3 2 Watcher 5 | . . 3 1 . . . . . . . 1 . . Swarmer 32 | . 3 9 . . . 6 4 . 10 . . . . Grunt 39 | . 5 3 4 1 . 2 3 4 7 5 . . 5 Brawler 1 | . . . . . . . . . . 1 . . . Duelist 1 | . . . . . . . . 1 . . . . . Protector 1 | . . . . . . . . . . . . . 1 Sentry 19 | . . 5 1 . . 1 . . 3 7 . 1 1 Specialist 1 | . . . 1 . . . . . . . . . . Hunter 5 | . . . . . . . . . 1 1 . . 3 Programmer 3 | . . . . 1 . . 2 . . . . . . Heavy 1 | . . . 1 . . . . . . . . . . Behemoth 1 | . . . . . . . . . . 1 . . . Compactor 6 | . . . . . 6 . . . . . . . . Cetus Guard 1 | . . . . . . . . . . . 1 . . Enhanced Grunt 3 | . . . . . . . . . . . . . 3 Lightning 3 | . . . . . . . . . . . . . 3 Thug 3 | . . . . . . . . . . 3 . . . Butcher 1 | . . . . . . . . . . . . . 1 Best Kill Streak 9 | 3 5 7 3 2 2 6 6 6 8 7 2 1 9 Combat Bots Only 8 | . 4 7 3 1 2 6 4 5 8 6 1 1 7 Max Kills in Single Turn 6 | 1 2 2 1 1 1 2 2 2 4 3 1 1 6 Gunslinging . | . . . . . . . . . . . . . . Exploded 4 | . 2 1 . . 1 2 1 1 4 . 1 . 2 Melee 1 | . . 1 1 . . 1 1 1 1 1 . . . Uniques/NPCs Destroyed . | . . . . . . . . . . . . . . Combat | -11 -10 -9 -8 -7 -7 -7 -6 -5 -5 -5 -5 -5 -5 -------- Run | Yrd Mat Mat Mat Fac Was Fac Fac Fac Gar Ext Cet Arc Hub Hostile Shots Fired 852 | . 60 142 63 7 1 119 34 28 97 137 17 21 126 Missed 241 | . 18 33 14 4 . 38 9 7 28 49 5 4 32 Hits 611 | . 42 109 49 3 1 81 25 21 69 88 12 17 94 Melee 8 | . . . . . 1 . . 5 . 2 . . . Projectile 603 | . 42 109 49 3 . 81 25 16 69 86 12 17 94 AOE 3 | . . 1 . . . . . 2 . . . . . Critical Strikes 22 | . . 3 1 . . . . 1 3 5 4 . 5 Actively Blocked 11 | . . . . . . . . . . 2 4 . 5 Part Disruptions 1 | . . . . . . . 1 . . . . . . Damage Taken 10854 | . 579 1455 860 122 174 747 463 478 1074 1634 340 444 2484 Core 1842 | . 124 286 266 . 3 100 53 40 74 216 47 60 573 Absorbed by Shields 388 | . . . . . . . . . . 343 45 . . Redirected to Shielding 130 | . . 16 . . . . . . . . 114 . . Ignored by Resistances 474 | . . . . . . . . 102 216 156 . . . Core Remaining (%) 67 | 100 50 28 51 . . 85 93 . . . . . . Volleys Fired 284 | 7 71 40 16 9 25 9 9 4 14 32 6 . 42 Largest 3 | 2 2 2 2 3 3 1 1 1 1 1 1 . 2 Hottest 208 | 60 70 124 90 208 125 30 68 45 65 65 56 . 112 Shots Fired 463 | 14 139 56 32 27 47 13 9 4 14 32 6 . 70 Gun 223 | 14 137 28 32 10 . 1 1 . . . . . . Cannon 157 | . . 22 . 17 2 3 5 1 11 28 2 . 66 Launcher 83 | . 2 6 . . 45 9 3 3 3 4 4 . 4 Special . | . . . . . . . . . . . . . . Kinetic 216 | 7 103 . . . . . 1 1 11 28 2 . 63 Thermal 95 | 7 34 26 . 18 2 3 5 . . . . . . Explosive 83 | . 2 6 . . 45 9 3 3 3 4 4 . 4 Electromagnetic 69 | . . 24 32 9 . 1 . . . . . . 3 Robot Hit Streak 23 | 5 7 17 8 7 23 4 2 6 3 12 6 . 9 Robot Miss Streak 8 | 1 3 4 3 3 2 2 3 3 1 3 3 . 8 Penetration Max 2 | . . . . . . . . . . 1 . . 2 Secondary Targets 3 | . 2 . 1 . . . . . . . . . . Max Gunslinging Chain 1 | . 1 . 1 . . . . . . . . . . Shots Hit Robots 522 | 10 90 100 42 14 31 20 30 13 52 66 6 6 42 Core Hits 407 | 4 26 26 16 6 20 17 23 22 41 55 45 . 106 Critical Kills 9 | . . . . 1 . . . . . . . . 8 Critical Parts Destroyed 31 | . . 7 . . . . . . . . . 2 22 Critical Strikes 76 | . . 16 10 2 . 1 1 1 6 6 . 2 31 Burn 1 | . . 1 . . . . . . . . . . . Meltdown 1 | . . . . 1 . . . . . . . . . Destroy 30 | . . . . . . . . . . . . . 30 Blast 6 | . . . . . . . . . 2 4 . . . Corrupt 6 | . . 2 3 1 . . . . . . . . . Smash 9 | . . 7 . . . . . . . . . 2 . Sever 15 | . . 6 7 . . . . . . 1 . . 1 Impale 8 | . . . . . . 1 1 1 4 1 . . . Melee Attacks 347 | . . 89 25 . . 18 31 14 62 90 8 6 4 Impact 103 | . . 73 . . . . . . 2 24 . 4 . Slashing 115 | . . 16 25 . . . . . . 60 8 2 4 Piercing 129 | . . . . . . 18 31 14 60 6 . . . Sneak Attacks 41 | . . 8 3 . . 5 7 . 2 12 . 3 1 Combat Hostiles 1 | . . . . . . . . . 1 . . . . Follow-up Attacks 27 | . . 13 3 . . . . . . 10 . 1 . Damage Inflicted 25218 | 99 1097 3052 790 324 3127 1153 1455 874 2160 5850 623 447 4167 Guns 1777 | 99 938 332 316 92 . . . . . . . . . Cannons 3022 | . . 318 . 174 27 . 42 . 99 1531 33 . 798 Explosions 10641 | . 159 449 41 58 3100 481 269 524 367 1405 590 . 3198 Melee 9755 | . . 1953 431 . . 672 1123 350 1694 2914 . 447 171 Ramming 23 | . . . 2 . . . 21 . . . . . . Kinetic 3180 | 33 686 . . . . . . . 99 1531 33 . 798 Thermal 1117 | 66 252 457 41 232 27 . 42 . . . . . . Explosive 9409 | . 159 361 . . 3100 481 269 524 367 1405 590 . 2153 Electromagnetic 1734 | . . 281 316 92 . . . . . . . . 1045 Impact 2102 | . . 1678 . . . . . . 55 . . 369 . Slashing 3677 | . . 275 431 . . . . . . 2722 . 78 171 Piercing 3976 | . . . . . . 672 1123 350 1639 192 . . . Highest Corruption 19 | . 1 . . . 19 19 . . . 10 10 10 15 Average Corruption 7 | . 1 . . . 10 19 . . . 3 10 10 11 Corruption Purged . | . . . . . . . . . . . . . . Corruption Blocked . | . . . . . . . . . . . . . . Effects 115 | . 1 . . . 11 29 . . . 21 24 10 19 Message Errors 28 | . . . . . 2 7 . . . 6 7 2 4 Matter Fused 19 | . 1 . . . 3 4 . . . 4 4 . 3 Heat Flow Errors 11 | . . . . . . 1 . . . . 4 4 2 Energy Discharges 19 | . . . . . 1 4 . . . 3 6 3 2 Parts Rejected 2 | . . . . . . . . . . 1 . . 1 Parts Fused 1 | . . . . . . . . . . . . . 1 Data Loss (minor) 15 | . . . . . . 7 . . . 3 2 1 2 Data Loss (major) 8 | . . . . . 1 2 . . . 4 1 . . Misfires 5 | . . . . . . 4 . . . . . . 1 Alerts 2 | . . . . . 1 . . . . . . . 1 Weapon Failures 5 | . . . . . 3 . . . . . . . 2 Overload Shots . | . . . . . . . . . . . . . . Overflow Damage 1670 | . . 507 24 . . 104 60 2 92 472 4 264 141 Projectiles 170 | . . 17 . . . . . . . 143 . . 10 Explosions 200 | . . 10 . . . 9 6 . . 40 4 . 131 Melee 1300 | . . 480 24 . . 95 54 2 92 289 . 264 . Knockbacks 24 | . . 1 . . . . . . . 5 . 3 15 Impact 4 | . . 1 . . . . . . . . . 3 . Kinetic 17 | . . . . . . . . . . 4 . . 13 Secondary 3 | . . . . . . . . . . 1 . . 2 Self-Inflicted Damage 389 | . . 30 26 . 116 . 15 21 . 30 46 . 105 Shots 15 | . . 1 1 . 6 . 1 1 . 2 2 . 1 Rammed 4 | . 2 . 2 . . . . . . . . . . Targets Rammed 6 | . 2 . 2 . . . 2 . . . . . . Kicked 2 | . . . . . . . 2 . . . . . . Crushed . | . . . . . . . . . . . . . . Highest Temperature 267 | 40 94 120 3 207 15 143 50 2 5 93 267 167 186 Average Temperature 42 | 19 23 43 3 78 10 52 25 2 3 25 122 72 40 Received Heat Transfer 2982 | . 288 366 342 9 . 186 81 168 432 471 45 72 522 Siege Activations . | . . . . . . . . . . . . . . Martial Activations . | . . . . . . . . . . . . . . Shielding Activations . | . . . . . . . . . . . . . . Robots Disrupted . | . . . . . . . . . . . . . . Combat Hostiles . | . . . . . . . . . . . . . . Robots Corrupted 15 | . . 7 . . . . . . 1 1 . 4 2 Combat Hostiles 6 | . . 4 . . . . . . 1 . . 1 . Parts Fried 22 | . . 6 3 . . . . . . 1 . 8 4 Impact Corruptions 30 | . . 19 . . . . . . 1 1 . 9 . Robots Melted 1 | . . . . 1 . . . . . . . . . Combat Hostiles 1 | . . . . 1 . . . . . . . . . Parts Melted 7 | . . . 4 3 . . . . . . . . . Heat Transferred 2269 | 150 598 1001 50 359 37 . 74 . . . . . . Parts Sabotaged . | . . . . . . . . . . . . . . Parts Stolen . | . . . . . . . . . . . . . . Parts Stripped . | . . . . . . . . . . . . . . Power Chain Reactions 4 | . . 2 1 1 . . . . . . . . . Alert | -11 -10 -9 -8 -7 -7 -7 -6 -5 -5 -5 -5 -5 -5 ------- Run | Yrd Mat Mat Mat Fac Was Fac Fac Fac Gar Ext Cet Arc Hub Maximum Alert Level 3 | . . 1 . . . . . . 3 3 2 1 3 Low Security (%) 54 | 100 100 60 100 100 100 100 100 100 7 15 . . 24 Level 1 22 | . . 39 . . . . . . 23 53 . 100 33 Level 2 15 | . . . . . . . . . 45 15 100 . 1 Level 3 7 | . . . . . . . . . 23 15 . . 41 Level 4 . | . . . . . . . . . . . . . . Level 5 . | . . . . . . . . . . . . . . High Security . | . . . . . . . . . . . . . . Max Security . | . . . . . . . . . . . . . . Peak Influence 965 | 5 153 303 93 70 14 136 144 139 755 886 649 382 965 Initial 496 | . . 9 93 27 14 . 53 43 93 396 496 218 95 Average 244 | 1 35 122 47 18 3 48 65 40 533 399 561 326 478 Influence Increases 6472 | 15 275 627 197 124 69 276 356 199 792 1651 367 244 1280 Destroy 0b10 Robot/C 3000 | . 160 340 140 40 . 180 180 100 540 820 140 80 280 Destroy 0b10 Robot/NC 310 | 15 25 70 10 10 . 15 35 5 . 65 5 15 40 Destroy Leader 502 | . 44 94 44 10 . 40 34 20 30 94 10 . 82 Allied During Kill 723 | . . . . . . . . . 40 372 104 95 112 Successful Hack 123 | . 6 9 . 18 . . . 30 21 14 2 . 23 Disable Machine 585 | . 15 . . 15 . 30 60 . 75 105 30 30 225 Anti-Garrison Action 200 | . . . . . . . . . 50 . . . 150 Destroy Structure 699 | . 10 39 3 1 69 11 2 44 36 106 76 24 278 Partial Spotted 30 | . . . . . . . 15 . . 15 . . . Lose Combat Pursuer 300 | . 15 75 . 30 . . 30 . . 60 . . 90 Influence Decreases 5515 | 15 251 428 360 144 109 165 378 155 170 1520 708 517 595 Entered New Map 1601 | . . 15 130 33 26 . 58 46 40 359 390 327 177 Time Decay 2623 | 15 221 313 180 111 73 120 300 93 . 571 278 150 198 Lost Part 711 | . 30 100 50 . 10 45 20 16 70 150 20 40 160 Lost Ally 580 | . . . . . . . . . 60 440 20 . 60 Squads Dispatched 30 | . 1 1 2 3 . 5 2 1 . 8 1 . 6 Investigation 9 | . . 1 . . . 1 . 1 . 4 1 . 1 Extermination 4 | . . . . 2 . 1 1 . . . . . . Reinforcement 10 | . 1 . 2 1 . . 1 . . 3 . . 2 Assault 3 | . . . . . . . . . . 1 . . 2 Garrison 4 | . . . . . . 3 . . . . . . 1 Intercept . | . . . . . . . . . . . . . . Searches Triggered . | . . . . . . . . . . . . . . Construction Impeded 2 | . . . . . . . . . . 1 . . 1 Haulers Reinforced 1 | . . . . . . . 1 . . . . . . Active Scanning Responses . | . . . . . . . . . . . . . . Cargo Convoy Interrupts . | . . . . . . . . . . . . . . Stealth | -11 -10 -9 -8 -7 -7 -7 -6 -5 -5 -5 -5 -5 -5 --------- Run | Yrd Mat Mat Mat Fac Was Fac Fac Fac Gar Ext Cet Arc Hub Distress Signals 10 | . 1 2 1 . . . . 1 . 1 1 . 3 Communications Jammed . | . . . . . . . . . . . . . . Distress Signals . | . . . . . . . . . . . . . . Times Spotted 214 | . 16 32 12 5 6 12 13 8 26 44 5 3 32 Peak Tracking Total 11 | . 3 7 4 3 3 6 5 5 5 5 5 3 11 Tactical Retreats 15 | . 1 4 . 1 . . 1 . . 4 . . 4 Traps | -11 -10 -9 -8 -7 -7 -7 -6 -5 -5 -5 -5 -5 -5 ------- Run | Yrd Mat Mat Mat Fac Was Fac Fac Fac Gar Ext Cet Arc Hub Traps Triggered 9 | . 2 1 . 2 . 1 1 . . 2 . . . Indirectly . | . . . . . . . . . . . . . . Trap Hack Attempts . | . . . . . . . . . . . . . . Triggered . | . . . . . . . . . . . . . . Disarmed . | . . . . . . . . . . . . . . Reprogrammed . | . . . . . . . . . . . . . . Reused . | . . . . . . . . . . . . . . Traps Extracted . | . . . . . . . . . . . . . . Installed . | . . . . . . . . . . . . . . Triggered . | . . . . . . . . . . . . . . Machines | -11 -10 -9 -8 -7 -7 -7 -6 -5 -5 -5 -5 -5 -5 ---------- Run | Yrd Mat Mat Mat Fac Was Fac Fac Fac Gar Ext Cet Arc Hub Machines Disabled 43 | . 1 . . 1 . 2 4 . 6 8 3 2 16 Max in Single Turn 11 | . 1 . . 1 . 1 2 . 1 1 1 . 11 Garrison Access 1 | . . . . . . . . . . . . . 1 Garrison Relay 1 | . . . . . . . . . 1 . . . . Phase Generator 1 | . . . . . . . . . 1 . . . . Network Hub 1 | . . . . . . . . . . . . . 1 Machines Repaired . | . . . . . . . . . . . . . . Machines Dismantled 6 | . . . . . . . . . . 4 2 . . Machines Sabotaged . | . . . . . . . . . . . . . . Overloaded Fab Kills . | . . . . . . . . . . . . . . Hacking | -11 -10 -9 -8 -7 -7 -7 -6 -5 -5 -5 -5 -5 -5 --------- Run | Yrd Mat Mat Mat Fac Was Fac Fac Fac Gar Ext Cet Arc Hub Machines Accessed 28 | . 3 3 1 3 . . . 2 3 7 2 1 3 Terminals 22 | . 3 3 . 1 . . . 1 3 7 2 . 2 Fabricators 1 | . . . . 1 . . . . . . . . . Repair Stations . | . . . . . . . . . . . . . . Recycling Units . | . . . . . . . . . . . . . . Scanalyzers 2 | . . . 1 1 . . . . . . . . . Garrison Access 2 | . . . . . . . . 1 . . . . 1 Total Hacks 81 | . 10 6 3 6 . . . 3 3 13 4 25 8 Successful 51 | . 5 3 2 3 . . . 2 3 3 2 25 3 Failed 30 | . 5 3 1 3 . . . 1 . 10 2 . 5 Catastrophic 6 | . 1 . . . . . . 1 . 3 1 . . Database Lockouts . | . . . . . . . . . . . . . . Manual 21 | . 10 5 . 2 . . . . . . 2 1 1 Terminals 45 | . 10 6 . 2 . . . 2 3 13 4 . 5 Fabricators 2 | . . . . 2 . . . . . . . . . Repair Stations . | . . . . . . . . . . . . . . Recycling Units . | . . . . . . . . . . . . . . Scanalyzers 5 | . . . 3 2 . . . . . . . . . Garrison Access 4 | . . . . . . . . 1 . . . . 3 Terminal Hacks 40 | . 2 1 . . . . . 1 3 3 2 25 3 Record 27 | . . . . . . . . . . . 2 25 . Robot Analysis 3 | . 2 . . . . . . 1 . . . . . Open Door 4 | . . . . . . . . . 1 3 . . . Branch Access Points 1 | . . . . . . . . . . . . . 1 Emergency Access Points 3 | . . . . . . . . . 1 . . . 2 Hauler Manifests 1 | . . 1 . . . . . . . . . . . Garrison Registry 1 | . . . . . . . . . 1 . . . . Fabricator Hacks . | . . . . . . . . . . . . . . Repair Station Hacks . | . . . . . . . . . . . . . . Recycling Unit Hacks . | . . . . . . . . . . . . . . Scanalyzer 4 | . . . 2 2 . . . . . . . . . Retrieve Study 4 | . . . 2 2 . . . . . . . . . Garrison Access Hacks 1 | . . . . . . . . 1 . . . . . Unlock Access 1 | . . . . . . . . 1 . . . . . Unauthorized Hacks 6 | . 3 2 . 1 . . . . . . . . . Terminals 6 | . 3 2 . 1 . . . . . . . . . Assimilate 1 | . . . . 1 . . . . . . . . . Botnet 5 | . 3 2 . . . . . . . . . . . Fabricators . | . . . . . . . . . . . . . . Repair Stations . | . . . . . . . . . . . . . . Recycling Units . | . . . . . . . . . . . . . . Scanalyzers . | . . . . . . . . . . . . . . Garrison Access . | . . . . . . . . . . . . . . Data Cores Recovered 1 | . . . . . . . . . . . . . 1 Used 1 | . . . . . . . . . . . . . 1 Hacking Detections 21 | . 3 3 1 3 . . . 1 1 5 1 . 3 Full Trace Events 7 | . . . . . . . . 1 . 4 1 . 1 Feedback Events 1 | . . . . . . . . . . 1 . . . Corruption 1 | . . . . . . . . . . 1 . . . Feedback Blocked . | . . . . . . . . . . . . . . Robot Schematics Acquired . | . . . . . . . . . . . . . . Robots Built . | . . . . . . . . . . . . . . Authchips . | . . . . . . . . . . . . . . Time . | . . . . . . . . . . . . . . Total Robot Build Rating . | . . . . . . . . . . . . . . Part Schematics Acquired . | . . . . . . . . . . . . . . Parts Built . | . . . . . . . . . . . . . . Authchips . | . . . . . . . . . . . . . . Time . | . . . . . . . . . . . . . . Total Part Build Rating . | . . . . . . . . . . . . . . Part Studies Acquired 4 | . . . 2 2 . . . . . . . . . Parts Repaired . | . . . . . . . . . . . . . . Time . | . . . . . . . . . . . . . . Parts Recycled . | . . . . . . . . . . . . . . Recycled Matter . | . . . . . . . . . . . . . . Retrieved Matter . | . . . . . . . . . . . . . . Retrieved Components . | . . . . . . . . . . . . . . Parts Scanalyzed . | . . . . . . . . . . . . . . Part Schematics Acquired . | . . . . . . . . . . . . . . Parts Damaged . | . . . . . . . . . . . . . . Bothacking | -11 -10 -9 -8 -7 -7 -7 -6 -5 -5 -5 -5 -5 -5 ------------ Run | Yrd Mat Mat Mat Fac Was Fac Fac Fac Gar Ext Cet Arc Hub Used RIF Installer . | . . . . . . . . . . . . . . Robots Hacked . | . . . . . . . . . . . . . . Non-combat . | . . . . . . . . . . . . . . Combat . | . . . . . . . . . . . . . . Robot Hacks Applied . | . . . . . . . . . . . . . . Relay Couplers Released 4 | . . . . . . . . . 3 . . . 1 Machine Destruction 4 | . . . . . . . . . 3 . . . 1 Fabnet Peak Effective % . | . . . . . . . . . . . . . . Robots Rewired 23 | . . . . . . . . . 3 20 . . . Allies Hacked . | . . . . . . . . . . . . . . Hacks Repelled . | . . . . . . . . . . . . . . Allies | -11 -10 -9 -8 -7 -7 -7 -6 -5 -5 -5 -5 -5 -5 -------- Run | Yrd Mat Mat Mat Fac Was Fac Fac Fac Gar Ext Cet Arc Hub Total Allies 39 | . . . . . . . . . 3 31 5 . . Largest Group 9 | . . . . . . . . . 3 8 9 8 7 Highest-Rated Group 724 | . . . . . . . . . 126 375 724 696 544 Highest-Rated Ally 159 | . . . . . . . . . 51 159 152 152 96 Initial Warlord ECA Mod 5 | . . . . . . . . . . 5 5 5 5 Total Orders . | . . . . . . . . . . . . . . Ally Attacks 316 | . . . . . . . . . 38 201 34 19 24 Total Damage 7931 | . . . . . . . . . 908 4634 783 741 865 Kills 47 | . . . . . . . . . 6 29 6 3 3 Allies Corrupted 4 | . . . . . . . . . . . . . 4 Allies Melted 2 | . . . . . . . . . . 2 . . . Intel | -11 -10 -9 -8 -7 -7 -7 -6 -5 -5 -5 -5 -5 -5 ------- Run | Yrd Mat Mat Mat Fac Was Fac Fac Fac Gar Ext Cet Arc Hub Active Infowar (turns) 4769 | 17 357 639 . . . 60 755 232 1151 1452 . . 106 Optics 3556 | . . . . . . . 721 232 1151 1452 . . . Sensors 637 | . . . . . . 60 577 . . . . . . IFF 106 | . . . . . . . . . . . . . 106 Seismic 827 | 17 357 453 . . . . . . . . . . . T.N.C. 638 | . . 638 . . . . . . . . . . . Robot Analysis Total 3 | . 2 . . . . . . 1 . . . . . Derelict Logs Recovered . | . . . . . . . . . . . . . . Drone Launches . | . . . . . . . . . . . . . . Drone Recoveries . | . . . . . . . . . . . . . . Exploration | -11 -10 -9 -8 -7 -7 -7 -6 -5 -5 -5 -5 -5 -5 ------------- Run | Yrd Mat Mat Mat Fac Was Fac Fac Fac Gar Ext Cet Arc Hub Turns Passed 9031 | 119 1054 943 395 473 264 580 760 232 1151 1735 607 318 400 Spaces Moved 4760 | 57 567 468 205 378 170 381 522 142 579 669 278 170 174 Core 12 | 12 . . . . . . . . . . . . . Treads 420 | 45 366 7 2 . . . . . . . . . . Legs 3134 | . . . 142 378 170 307 367 136 579 433 278 170 174 Wheels 1194 | . 201 461 61 . . 74 155 6 . 236 . . . Hover . | . . . . . . . . . . . . . . Flight . | . . . . . . . . . . . . . . Fastest Speed 50 | 50 100 95 105 105 108 107 110 108 105 115 117 114 105 Average Speed 125 | 136 142 105 111 107 109 117 110 111 125 148 117 175 132 Slowest Speed 455 | 160 160 240 160 117 110 180 110 185 178 455 117 182 252 Overloaded Moves . | . . . . . . . . . . . . . . Propulsion Burnouts . | . . . . . . . . . . . . . . Robots Hopped . | . . . . . . . . . . . . . . Potential Cave-ins . | . . . . . . . . . . . . . . Cave-ins Triggered . | . . . . . . . . . . . . . . Exploration Rate (%) 45 | 3 76 53 30 9 84 11 14 8 83 77 80 94 18 Regions Visited 13 Branch Regions 4 Pre-discovered Areas . | . . . . . . . . . . . . . . Known Exits Taken 6 | . . . . . . 1 1 1 . 1 1 1 . Unknown Exits Taken 4 | 1 1 1 1 . . . . . . . . . . Scrap Searched . | . . . . . . . . . . . . . . Spaces Dug . | . . . . . . . . . . . . . . Terrain Destroyed 586 | . 9 38 3 1 122 9 2 38 22 88 103 . 151 Melee . | . . . . . . . . . . . . . . Projectile 10 | . . . . . . . . 1 . 7 . . 2 AOE 576 | . 9 38 3 1 122 9 2 37 22 81 103 . 149 Terrain Rammed . | . . . . . . . . . . . . . . Walls Destroyed . | . . . . . . . . . . . . . . Machines Disabled . | . . . . . . . . . . . . . . Actions | -11 -10 -9 -8 -7 -7 -7 -6 -5 -5 -5 -5 -5 -5 --------- Run | Yrd Mat Mat Mat Fac Was Fac Fac Fac Gar Ext Cet Arc Hub Total 6767 | 86 685 739 293 425 198 475 650 187 926 1175 487 180 261 Wait 693 | 7 14 90 20 20 . 21 45 9 195 101 159 2 10 Move 4742 | 56 566 467 204 378 169 380 521 142 571 668 277 169 174 Hop . | . . . . . . . . . . . . . . Pick Up 148 | 9 19 24 13 3 1 12 15 6 17 21 3 1 4 Fast Attach 38 | . 2 1 . 4 . 11 3 . 5 8 . . 4 Attach 89 | 7 3 13 10 1 . 3 4 7 7 15 2 2 15 Detach 6 | . . . . . . . . 1 3 . . . 2 Swap 81 | . 4 15 3 3 2 7 10 2 6 20 6 1 2 Drop 90 | . 4 15 3 7 1 14 10 2 14 14 2 . 4 Fire 284 | 7 71 40 16 9 25 9 9 4 14 32 6 . 42 Melee 302 | . . 74 22 . . 18 31 14 62 66 6 5 4 Ram . | . . . . . . . . . . . . . . Kick 2 | . . . . . . . 2 . . . . . . Crush 4 | . 2 . 2 . . . . . . . . . . Escape Stasis 5 | . . . . . . . . . . 5 . . . Rewire 225 | . . . . . . . . . 32 193 . . . Trap . | . . . . . . . . . . . . . . Miscellaneous 58 | . . . . . . . . . . 32 26 . . Route ------- -11/Scrapyard -10/Materials (discovered 2 exits: *Mat x2) -9/Materials (discovered 3 exits: *Mat / [*Min x2]) -8/Materials -7/Factory -7/Waste -7/Factory -6/Factory -5/Factory -5/Garrison (discovered 3 exits: *Ext x3) -5/Extension (discovered 2 exits: *Fac / *Cet) -5/Cetus -5/Archives (discovered 3 exits: *Fac / *Hub x2) -5/Hub_04(d) History --------- Turn | Location | Event 8 | -11/Scrapyard | Discovered new exit (range 15) 120 | -11/Scrapyard | Entered Materials 303 | -10/Materials | Build established: Mutant 785 | -10/Materials | Discovered new exit (range 16) 1163 | -10/Materials | Discovered new exit (range 4) 1174 | -10/Materials | Entered another Materials area 1174 | -9/Materials | Evolved 2 slots: Propulsion x1, Utility x1 1590 | -9/Materials | Discovered new exit (range 11) 1642 | -9/Materials | Core integrity fell below 50% 1658 | -9/Materials | Lost 3 parts (2n1u) 1687 | -9/Materials | Destroyed 7 combat bots 1804 | -9/Materials | Discovered new exit (range 16) 2085 | -9/Materials | Lost 6 parts (1p3n1u1w) 2105 | -9/Materials | Discovered new exit (range 4) 2117 | -9/Materials | Entered another Materials area 2117 | -8/Materials | Evolved 2 slots: Propulsion x1, Weapon x1 2312 | -8/Materials | Lost 5 parts (2n3w) 2371 | -8/Materials | Met 7R-MNS 2494 | -8/Materials | Discovered new exit (range 16) 2512 | -8/Materials | Entered Factory 2512 | -7/Factory | Evolved 2 slots: Propulsion x1, Utility x1 2819 | -7/Factory | Build established: Tank 2985 | -7/Factory | Sucked down chute 2985 | -7/Factory | Entered Waste 3000 | -7/Waste | EMP discharged 3014 | -7/Waste | Spotted C-40 Crusher 3014 | -7/Waste | Spotted C-40 Crusher 3023 | -7/Waste | Spotted C-40 Crusher 3034 | -7/Waste | Destroyed C-40 Crusher 3070 | -7/Waste | Destroyed C-40 Crusher 3073 | -7/Waste | Destroyed C-40 Crusher 3090 | -7/Waste | Spotted C-40 Crusher 3100 | -7/Waste | EMP discharged 3100 | -7/Waste | System corruption reached 10% 3104 | -7/Waste | Destroyed C-40 Crusher 3135 | -7/Waste | Spotted C-40 Crusher 3145 | -7/Waste | Destroyed C-40 Crusher 3173 | -7/Waste | Spotted C-40 Crusher 3182 | -7/Waste | Discovered new exit (range 14) 3193 | -7/Waste | Crushed by Compactor (1 part destroyed, 1 dropped) 3200 | -7/Waste | EMP discharged 3216 | -7/Waste | Destroyed C-40 Crusher 3249 | -7/Waste | Entered Factory 3423 | -7/Factory | Discovered new exit (range 8) 3549 | -7/Factory | Found Prototype Launcher 3550 | -7/Factory | Identified Rocket Array 3554 | -7/Factory | Found Rocket Array 3556 | -7/Factory | Found Faulty Rocket Array 3593 | -7/Factory | Garrison activated, responded to threat 3639 | -7/Factory | Lost 3 parts (2n1u) 3732 | -7/Factory | Build established: Mutant 3828 | -7/Factory | Identified exit to Factory 3829 | -7/Factory | Entered another Factory area 3829 | -6/Factory | Evolved 2 slots: Utility x2 3988 | -6/Factory | Discovered new exit (range 4) 3995 | -6/Factory | Identified exit to Factory 4159 | -6/Factory | Build established: Assassin 4589 | -6/Factory | Entered another Factory area 4589 | -5/Factory | Evolved 2 slots: Utility x2 4700 | -5/Factory | Build established: Mutant 4821 | -5/Factory | Identified exit to Garrison 4821 | -5/Factory | Entered Garrison 4830 | -5/Garrison | Met a derelict Sapper fleeing the area 4830 | -5/Garrison | Phase Generator disabled 4950 | -5/Garrison | Destroyed 8 combat bots 5079 | -5/Garrison | Lost 3 parts (1p1n1w) 5086 | -5/Garrison | Build established: Scavenger-Mutant 5183 | -5/Garrison | Triggered checkpoint 5210 | -5/Garrison | Garrison Relay disabled 5229 | -5/Garrison | Discovered new exit (range 19) 5236 | -5/Garrison | Triggered checkpoint 5271 | -5/Garrison | Triggered checkpoint 5586 | -5/Garrison | Discovered new exit (range 11) 5617 | -5/Garrison | Triggered checkpoint 5626 | -5/Garrison | Discovered new exit (range 26) 5626 | -5/Garrison | Discovered new exit (range 56) 5626 | -5/Garrison | Discovered new exit (range 53) 5669 | -5/Garrison | Identified exit to Extension 5705 | -5/Garrison | H-XX Assembler disabled 5735 | -5/Garrison | Attempted to access garrison exit controls, blocked by remote lockdown 5871 | -5/Garrison | Triggered checkpoint 5972 | -5/Garrison | Entered Extension 6021 | -5/Extension | Rescued a captive Derelict 6023 | -5/Extension | Rescued a captive Derelict 6064 | -5/Extension | Rescued a captive Derelict 6225 | -5/Extension | Lost 3 allies 6280 | -5/Extension | Lost 5 parts (4n1u) 6404 | -5/Extension | Lost 5 parts (1p2n2u) 6512 | -5/Extension | Rescued a captive Derelict 6712 | -5/Extension | Build established: Scavenger-Gladiator 6735 | -5/Extension | Rescued A7 6750 | -5/Extension | Lost 4 allies 7031 | -5/Extension | Spotted B-75 Beast 7034 | -5/Extension | Spotted B-75 Beast 7037 | -5/Extension | Allies destroyed B-75 Beast 7057 | -5/Extension | Destroyed B-75 Beast 7086 | -5/Extension | Lost 5 allies 7097 | -5/Extension | Disrupted transfer network 7176 | -5/Extension | Rescued a captive Derelict 7223 | -5/Extension | Rescued a captive Derelict 7225 | -5/Extension | Rescued a captive Derelict 7472 | -5/Extension | First assault squad dispatched 7567 | -5/Extension | Rescued a captive Derelict 7598 | -5/Extension | System corruption reached 10% 7618 | -5/Extension | Lost 7 allies 7636 | -5/Extension | Rescued a captive Derelict 7639 | -5/Extension | Rescued a captive Derelict 7680 | -5/Extension | Discovered new exit (range 10) 7681 | -5/Extension | Discovered new exit (range 6) 7701 | -5/Extension | Identified exit to Cetus 7704 | -5/Extension | Identified exit to Factory 7707 | -5/Extension | Entered Cetus 7707 | -5/Cetus | Accompanied by 4 allies (A7) 7712 | -5/Cetus | Acquired a Cetus Manufacturing Module code from A7 7722 | -5/Cetus | Spotted Cetus Guard 7722 | -5/Cetus | Spotted Cetus Guard 7724 | -5/Cetus | Spotted Cetus Guard 7725 | -5/Cetus | Spotted Cetus Guard 7730 | -5/Cetus | Allies destroyed Cetus Guard 7741 | -5/Cetus | Destroyed Cetus Guard 7750 | -5/Cetus | Allies destroyed Cetus Guard 7751 | -5/Cetus | Allies destroyed Cetus Guard 7825 | -5/Cetus | Escorted A7 to Cetus Mainframe 7876 | -5/Cetus | Started Cetus Manufacturing Module 7901 | -5/Cetus | Manufactured an Enhanced Grunt 7926 | -5/Cetus | Manufactured an Enhanced Grunt 7951 | -5/Cetus | Manufactured an Enhanced Grunt 7976 | -5/Cetus | Manufactured an Enhanced Grunt 8001 | -5/Cetus | Manufactured an Enhanced Grunt 8101 | -5/Cetus | Found a strange terminal 8229 | -5/Cetus | Build established: Commander-Gladiator 8284 | -5/Cetus | Discovered new exit (range 15) 8300 | -5/Cetus | Identified exit to Archives 8314 | -5/Cetus | Entered Archives 8314 | -5/Archives | Accompanied by 8 allies (A7) 8319 | -5/Archives | Received a hacking code to weaken MAIN.C 8345 | -5/Archives | Discovered new exit (range 16) 8356 | -5/Archives | Unable to access archive contents 8365 | -5/Archives | Discovered new exit (range 14) 8369 | -5/Archives | Lost 4 parts (3n1w) 8382 | -5/Archives | Unable to access archive contents 8402 | -5/Archives | Unable to access archive contents 8427 | -5/Archives | Discovered exit to Factory (range 15) 8514 | -5/Archives | Identified exit to Hub_04(d) 8632 | -5/Archives | Entered Hub_04(d) 8632 | -5/Hub_04(d) | Accompanied by 7 allies 8665 | -5/Hub_04(d) | Garrison activated, responded to threat 8861 | -5/Hub_04(d) | Network Hub disabled 8865 | -5/Hub_04(d) | Spotted Lightning 8865 | -5/Hub_04(d) | Spotted Lightning 8866 | -5/Hub_04(d) | Core integrity fell below 50% 8873 | -5/Hub_04(d) | Spotted Lightning 8885 | -5/Hub_04(d) | Destroyed Lightning 8903 | -5/Hub_04(d) | Core integrity fell below 20% 8916 | -5/Hub_04(d) | Lost 8 parts (2p4n2u) 8930 | -5/Hub_04(d) | Lost 5 allies 8979 | -5/Hub_04(d) | Destroyed Lightning 9000 | -5/Hub_04(d) | Destroyed 7 combat bots 9007 | -5/Hub_04(d) | Destroyed Lightning 9032 | -5/Hub_04(d) | Destroyed by G-50 Soldier with Heavy Laser Last Messages --------------- 09021_ HV Slug penetrates G-50 Soldier. 09021_ G-50 Soldier suffers critical hit (Destroy). 09021_ Destroyed Adv. Heat Sink. 09023_ M-28 Smith repairs G-50 Soldier. 09024_ HV Slug penetrates Wall. 09025_ M-28 Smith fits Backup Laser III on G-50 Soldier. 09027_ HV Slug penetrates G-50 Soldier. 09027_ G-50 Soldier suffers critical hit (Destroy). 09027_ Destroyed Hvy. Laser. 09027_ HV Slug penetrates G-50 Soldier. 09027_ G-50 Soldier suffers critical hit (Destroy). 09027_ Destroyed Lgt. Angular Momentum Engine. 09027_ M-28 Smith fits Backup Power III on G-50 Soldier. 09029_ M-28 Smith fits Backup Propulsion III on G-50 Soldier. Map ----- +----------------------------------------------------+ | | | | | | | | | | | ??????????##########?????????????????????????????? | | ??????????# #???????????###############???? | | ??????????# """ #???????????#"""T"""#"""""#???? | | ??????????# #############" " """#""T""##### | | ??????????# "" # % | | ####??????# "" + = | | ######## T" # %! | | ## # "" ### ###########+######+######## | | ## """ + ! "" #?# #??# # !!!!!# | | # ### # #?# #??# # !!%!!# | | # #?# """ ###+######?# #??# ! """ + """"!=# | | # #?# #?# #??????# #??# " # """" # | | # #?# """ #?# #??????# #??# ""G"" """ # """" / | | # #?? ??# #??????# #??# + """" # | | # #####+##### #??????# #??############### # | | # #??????#%#????????????????# = # | | ####### "????###;####?????????????# # | | ??????# "#???#% % %#?????????????########## | | ??????# "#???# m" g####???????????????????# | | ??????####### "#???# g !%+ ????????????????????# | | ????????????# "##??#%"% @#??????????????????????# | | ????????????# T#??# #??????????????????????? | | ????????????# "#??# [= #??????????????????????? | | ????????????#%*##??###+####??????????????????????? | | ?????????#*! ##???#=#????####?????????????????? | | ""???#####%% #???#*#?? ??????????????????? | | " ##"""!=!""#####%#"""" ""#?????????????????? | | " !%%*= %!+%" "#?????????????????? | | " """""=]%""#####%#"""" ""#?????????????????? | | """"""""==%!! #??#%# ??????????????????? | | " !$= !%/" #??#!#?#/#####?????????????????? | | =%! " ??#=#?? ????????????????????? | | = " ??# #???"""???????????????????? | | = """""?"%"???? ??????????????????? | | #"" " "%!????? ?????????????????? | | # "" ] " "="?????? ?????????????????? | | # "" " " ????????????????????????? | | ? "" "%# ???????????????????????? | | ? "" " #? ??????????????????????? | | ??""! " #??#??????????????????????? | | ??""""""" " "?????????????????????????? | | ??? " " % """ "#????????????????????????? | | ????? " ?????????????????????????? | | ???????#" """"#"#####???????????????????????????? | | ?????????? ## ? ???????????????????????????????? | +----------------------------------------------------+ Best States ------------- Heat Dissipation 71 Energy Generation 21 Energy Capacity 500 Matter Stores 300 Matter Capacity 450 Sight Range 22 Robot Scan Range 15 Terrain Scan Density 10 Additional Mass Support 12 Armor Coverage 225 Resistance: TH 25 Propulsion Shielding 66 Weapon Shielding 33 Melee Speed Boost 20 Phase Shifting 10 Evasion (%) 63 Melee Accuracy 14 Recoil Reduction 3 Energy Filtering 30 Force Boost 30 Item Schematics ----------------- None Robot Schematics ------------------ None Fabricated ------------ Nothing Repaired ---------- Nothing Studied --------- Carbon-fiber Leg | -8/Materials | Hacked Grenade Launcher | -8/Materials | Hacked Imp. Titanium Leg | -7/Factory | Hacked Lgt. Deuterium Engine | -7/Factory | Hacked Alien Tech Used ----------------- None Achievements -------------- None Challenges ------------ None Game ------ Seed LongswordTransportCoupler Manual? 0 Play Time 01:28:23 Cumulative 151.7 hours Start 2026.03.29 @ 02:49:49 End 2026.03.29 @ 09:50:55 Sessions 3 Manual Loads 0 Difficulty Rogue Special Mode None Game No. 169 Rogue 169 Adventurer 0 Explorer 0 Win Type - Total 3 Types 3/0/0/0/0/0/0/0/0/0 Lore% 76 Gallery% 63 Achievement% 49 Wizard Run 0 Options --------- Layout 1 ASCII 0 Keyboard 0 Movement Mouse Keybinds 0 Fullscreen 1 Font 32/SmallcapsGlow Map View 50x35 Zoom Use 0% Tactical HUD 1 Map Filters NONE Filters NONE Steam 1 RUN: ea7e53ec-6249-46a6-9ba7-2b2f961bb345